fUST/lending_fUST_20250708
["ID","MTS","AMOUNT","RATE_DAILY","PERIOD"]
[370286101,1751937045103,-460.0,0.00019452,2]
[370286103,1751937045112,-442.04347894,0.00019452,2]
[370286105,1751937045123,-460.0,0.00019452,2]
[370286107,1751937045132,-460.0,0.00019452,2]
[370286109,1751937045141,-3856.42,0.00019452,2]
[370286111,1751937045150,-460.0,0.00019452,2]
[370286113,1751937045160,-460.0,0.00019452,2]
[370286115,1751937045169,-460.0,0.00019452,2]
[370286117,1751937045178,-529.07908283,0.00019452,2]
[370286119,1751937045187,-460.0,0.00019452,2]
[370286121,1751937045197,-500.0,0.00019473,2]
[370286123,1751937045207,-500.0,0.00019473,2]
[370286125,1751937045216,-500.0,0.00019473,2]
[370286127,1751937045226,-500.72984294,0.00019473,2]
[370286129,1751937045235,-500.0,0.00019473,2]
[370286131,1751937045248,-500.0,0.00019473,2]
[370286133,1751937045257,-500.0,0.00019473,2]
[370286135,1751937045266,-500.0,0.00019473,2]
[370286137,1751937045275,-500.0,0.00019473,2]
[370286139,1751937045285,-500.75723292,0.00019473,2]
[370286141,1751937045294,-500.0,0.00019473,2]
[370286143,1751937045304,-500.0,0.00019473,2]
[370286145,1751937045313,-500.0,0.00019473,2]
[370286147,1751937045323,-225.55188616,0.00019473,2]
[370286149,1751937045333,-159.4922776,0.000195,2]
[370286151,1751937045343,-576.0368563,0.000195,2]
[370286153,1751937045352,-159.4922776,0.000195,2]
[370286155,1751937045361,-159.4922776,0.000195,2]
[370286157,1751937045370,-1471.20296462,0.00019557,2]
[370286159,1751937045380,-160.0,0.00019614,2]
[370286161,1751937045389,-160.0,0.00019614,2]
[370286163,1751937045398,-160.0,0.00019614,2]
[370286165,1751937045408,-12584.46609586,0.00019614,2]
[370286167,1751937045421,-160.0,0.00019614,2]
[370286169,1751937045431,-160.0,0.00019614,2]
[370286171,1751937045441,-215.21338352,0.00019614,2]
[370286173,1751937045451,-230.48668418,0.00019614,2]
[370286176,1751937045460,-214.06929976,0.00019614,2]
[370286177,1751937045470,-837.79946008,0.00019614,2]
[370286179,1751937045479,-848.27993403,0.00019614,2]
[370286182,1751937045489,-160.0,0.00019614,2]
[370286184,1751937045503,-160.0,0.00019614,2]
[370286186,1751937045513,-160.0,0.00019614,2]
[370286188,1751937045522,-160.0,0.00019614,2]
[370286190,1751937045531,-150.0,0.00019682,2]
[370286192,1751937045541,-910.1177897,0.00019691,2]
[370286194,1751937045550,-1000.0,0.00019721,2]
[370286195,1751937045559,-1000.0,0.00019721,2]
[370286197,1751937045568,-500.0,0.00019726,2]
[370286199,1751937045578,-460.0,0.00019726,2]
[370286201,1751937045587,-460.0,0.00019726,2]
[370286203,1751937045597,-460.0,0.00019726,2]
[370286205,1751937045606,-151.0,0.00019726,2]
[370286207,1751937045616,-460.0,0.00019726,2]
[370286209,1751937045625,-238.313456,0.00019726,2]
[370286211,1751937045634,-460.0,0.00019726,2]
[370286213,1751937045644,-460.0,0.00019726,2]
[370286216,1751937045655,-460.0,0.00019726,2]
[370286218,1751937045665,-460.0,0.00019726,2]
[370286220,1751937045675,-460.0,0.00019726,2]
[370286223,1751937045685,-460.0,0.00019726,2]
[370286226,1751937045694,-460.0,0.00019726,2]
[370286228,1751937045704,-460.0,0.00019726,2]
[370286229,1751937045713,-460.0,0.00019726,2]
[370286232,1751937045723,-460.0,0.00019726,2]
[370286234,1751937045732,-460.0,0.00019726,2]
[370286237,1751937045748,-460.0,0.00019726,2]
[370286238,1751937045757,-460.0,0.00019726,2]
[370286240,1751937045766,-460.0,0.00019726,2]
[370286243,1751937045775,-460.0,0.00019726,2]
[370286245,1751937045785,-465.58509091,0.00019726,2]
[370286247,1751937045795,-151.0,0.00019726,2]
[370286249,1751937045804,-460.0,0.00019726,2]
[370286251,1751937045813,-460.0,0.00019726,2]
[370286253,1751937045823,-460.0,0.00019726,2]
[370286255,1751937045832,-460.0,0.00019726,2]
[370286257,1751937045841,-460.0,0.00019726,2]
[370286259,1751937045851,-460.0,0.00019726,2]
[370286261,1751937045860,-514.12,0.00019726,2]
[370286263,1751937045870,-460.0,0.00019726,2]
[370286276,1751937045986,-500.0,0.00019726,2]
[370286278,1751937045998,-460.0,0.00019726,2]
[370286280,1751937046008,-593.79,0.00019726,2]
[370286282,1751937046017,-460.0,0.00019726,2]
[370286284,1751937046026,-460.0,0.00019726,2]
[370286286,1751937046036,-460.0,0.00019726,2]
[370286288,1751937046045,-460.0,0.00019726,2]
[370286290,1751937046054,-460.0,0.00019726,2]
[370286292,1751937046064,-725.15,0.00019726,2]
[370286294,1751937046073,-460.0,0.00019726,2]
[370286296,1751937046082,-460.0,0.00019726,2]
[370286298,1751937046092,-460.0,0.00019726,2]
[370286300,1751937046102,-460.0,0.00019726,2]
[370286302,1751937046112,-460.0,0.00019726,2]
[370286304,1751937046122,-460.0,0.00019726,2]
[370286306,1751937046132,-460.0,0.00019726,2]
[370286308,1751937046141,-460.0,0.00019726,2]
[370286310,1751937046150,-460.0,0.00019726,2]
[370286312,1751937046160,-460.0,0.00019726,2]
[370286314,1751937046169,-460.0,0.00019726,2]
[370286316,1751937046178,-512.84,0.00019726,2]
[370286319,1751937046189,-151.0,0.00019726,2]
[370286321,1751937046198,-151.0,0.00019726,2]
[370286323,1751937046207,-460.0,0.00019726,2]
[370286324,1751937046217,-151.0,0.00019726,2]
[370286326,1751937046227,-151.0,0.00019726,2]
[370286329,1751937046237,-460.0,0.00019726,2]
[370286331,1751937046248,-460.0,0.00019726,2]
[370286333,1751937046258,-460.0,0.00019726,2]
[370286334,1751937046267,-460.0,0.00019726,2]
[370286337,1751937046277,-462.32889368,0.00019726,2]
[370286339,1751937046286,-460.0,0.00019726,2]
[370286341,1751937046295,-460.0,0.00019726,2]
[370286342,1751937046305,-234.59276392,0.00019726,2]
[370286344,1751937046314,-460.0,0.00019726,2]
[370286346,1751937046323,-460.0,0.00019726,2]
[370286349,1751937046333,-460.0,0.00019726,2]
[370286350,1751937046342,-531.92241728,0.00019726,2]
[370286352,1751937046351,-460.0,0.00019726,2]
[370286354,1751937046361,-261.25,0.00019726,2]
[370286356,1751937046371,-460.0,0.00019726,2]
[370286359,1751937046380,-460.0,0.00019726,2]
[370286361,1751937046390,-151.0,0.00019726,2]
[370286363,1751937046400,-151.0,0.00019726,2]
[370286365,1751937046411,-460.0,0.00019726,2]
[370286366,1751937046423,-460.0,0.00019726,2]
[370286369,1751937046432,-460.0,0.00019726,2]
[370286371,1751937046441,-460.0,0.00019726,2]
[370286373,1751937046451,-460.0,0.00019726,2]
[370286375,1751937046461,-460.0,0.00019726,2]
[370286378,1751937046471,-4588.62,0.00019726,2]
[370286381,1751937046482,-460.0,0.00019726,2]
[370286383,1751937046493,-594.4,0.00019726,2]
[370286385,1751937046505,-460.0,0.00019726,2]
[370286387,1751937046515,-460.0,0.00019726,2]
[370286389,1751937046524,-717.96,0.00019726,2]
[370286391,1751937046533,-460.0,0.00019726,2]
[370286393,1751937046543,-1053.76,0.00019726,2]
[370286395,1751937046552,-460.0,0.00019726,2]
[370286397,1751937046561,-460.0,0.00019726,2]
[370286399,1751937046570,-460.0,0.00019726,2]
[370286401,1751937046580,-460.0,0.00019726,2]
[370286402,1751937046589,-460.0,0.00019726,2]
[370286404,1751937046599,-460.0,0.00019726,2]
[370286407,1751937046609,-460.0,0.00019726,2]
[370286408,1751937046618,-460.0,0.00019726,2]
[370286411,1751937046628,-460.0,0.00019726,2]
[370286412,1751937046637,-2549.65,0.00019726,2]
[370286414,1751937046646,-460.0,0.00019726,2]
[370286417,1751937046656,-5668.98,0.00019726,2]
[370286418,1751937046665,-460.0,0.00019726,2]
[370286421,1751937046675,-253.34835268,0.00019726,2]
[370286423,1751937046684,-460.0,0.00019726,2]
[370286425,1751937046693,-465.41711755,0.00019726,2]
[370286427,1751937046703,-1332.79,0.00019726,2]
[370286428,1751937046712,-460.0,0.00019726,2]
[370286430,1751937046722,-460.0,0.00019726,2]
[370286433,1751937046731,-460.0,0.00019726,2]
[370286435,1751937046741,-460.0,0.00019726,2]
[370286437,1751937046752,-607.07,0.00019726,2]
[370286439,1751937046762,-460.0,0.00019726,2]
[370286441,1751937046771,-460.0,0.00019726,2]
[370286442,1751937046781,-194.42,0.00019726,2]
[370286445,1751937046790,-520.87,0.00019726,2]
[370286446,1751937046800,-460.0,0.00019726,2]
[370286449,1751937046811,-460.0,0.00019726,2]
[370286450,1751937046819,-429.27751898,0.00019726,2]
[370286453,1751937046829,-489.0332452,0.00019726,2]
[370286455,1751937046839,-460.0,0.00019726,2]
[370286456,1751937046848,-460.0,0.00019726,2]
[370286458,1751937046857,-460.0,0.00019726,2]
[370286460,1751937046866,-541.26,0.00019726,2]
[370286462,1751937046875,-460.0,0.00019726,2]
[370286464,1751937046885,-173.53476524,0.00019726,2]
[370286466,1751937046894,-460.0,0.00019726,2]
[370286468,1751937046903,-610.79,0.00019726,2]
[370286470,1751937046912,-1850.41,0.00019726,2]
[370286472,1751937046921,-1644.49,0.00019726,2]
[370286474,1751937046930,-460.0,0.00019726,2]
[370286476,1751937046940,-460.0,0.00019726,2]
[370286478,1751937046950,-1272.17,0.00019726,2]
[370286480,1751937046959,-549.14393477,0.00019726,2]
[370286482,1751937046969,-930.26,0.00019726,2]
[370286484,1751937046979,-460.0,0.00019726,2]
[370286486,1751937046988,-3081.45,0.00019726,2]
[370286488,1751937046999,-460.0,0.00019726,2]
[370286490,1751937047008,-476.59,0.00019726,2]
[370286492,1751937047017,-460.0,0.00019726,2]
[370286494,1751937047026,-619.01,0.00019726,2]
[370286496,1751937047036,-3003.55,0.00019726,2]
[370286498,1751937047045,-500.0,0.00019726,2]
[370286501,1751937047054,-460.0,0.00019726,2]
[370286503,1751937047063,-460.0,0.00019726,2]
[370286504,1751937047073,-603.53,0.00019726,2]
[370286506,1751937047082,-1916.12,0.00019726,2]
[370286509,1751937047092,-460.0,0.00019726,2]
[370286510,1751937047102,-460.0,0.00019726,2]
[370286513,1751937047111,-460.0,0.00019726,2]
[370286514,1751937047120,-460.0,0.00019726,2]
[370286517,1751937047130,-1735.96,0.00019726,2]
[370286518,1751937047139,-585.99,0.00019726,2]
[370286520,1751937047148,-460.0,0.00019726,2]
[370286522,1751937047158,-460.0,0.00019726,2]
[370286524,1751937047167,-460.0,0.00019726,2]
[370286526,1751937047176,-460.0,0.00019726,2]
[370286528,1751937047185,-460.0,0.00019726,2]
[370286530,1751937047194,-188.72126539,0.00019726,2]
[370286532,1751937047204,-460.0,0.00019726,2]
[370286534,1751937047213,-1756.11,0.00019726,2]
[370286536,1751937047222,-770.94,0.00019726,2]
[370286538,1751937047231,-467.84179581,0.00019726,2]
[370286540,1751937047240,-505.72,0.00019726,2]
[370286543,1751937047251,-460.0,0.00019726,2]
[370286544,1751937047260,-847.18,0.00019726,2]
[370286546,1751937047269,-460.0,0.00019726,2]
[370286549,1751937047278,-460.0,0.00019726,2]
[370286551,1751937047288,-460.0,0.00019726,2]
[370286552,1751937047297,-3003.21,0.00019726,2]
[370286555,1751937047306,-703.2,0.00019726,2]
[370286557,1751937047316,-460.0,0.00019726,2]
[370286559,1751937047325,-460.0,0.00019726,2]
[370286561,1751937047334,-460.0,0.00019726,2]
[370286563,1751937047343,-460.0,0.00019726,2]
[370286565,1751937047352,-552.30136842,0.00019726,2]
[370286566,1751937047361,-2471.39,0.00019726,2]
[370286569,1751937047371,-623.22,0.00019726,2]
[370286571,1751937047381,-464.75915358,0.00019726,2]
[370286573,1751937047390,-460.0,0.00019726,2]
[370286574,1751937047399,-460.0,0.00019726,2]
[370286576,1751937047409,-460.0,0.00019726,2]
[370286578,1751937047424,-460.0,0.00019726,2]
[370286581,1751937047433,-507.55,0.00019726,2]
[370286582,1751937047443,-641.51,0.00019726,2]
[370286585,1751937047452,-460.0,0.00019726,2]
[370286587,1751937047462,-198.5,0.00019726,2]
[370286589,1751937047471,-587.87,0.00019726,2]
[370286591,1751937047481,-460.0,0.00019726,2]
[370286593,1751937047490,-460.0,0.00019726,2]
[370286595,1751937047501,-460.0,0.00019726,2]
[370286596,1751937047510,-460.0,0.00019726,2]
[370286599,1751937047520,-460.0,0.00019726,2]
[370286601,1751937047529,-460.0,0.00019726,2]
[370286603,1751937047539,-1844.93,0.00019726,2]
[370286605,1751937047549,-596.53,0.00019726,2]
[370286607,1751937047559,-1237.37,0.00019726,2]
[370286609,1751937047568,-460.0,0.00019726,2]
[370286610,1751937047579,-460.0,0.00019726,2]
[370286612,1751937047590,-460.0,0.00019726,2]
[370286614,1751937047600,-765.87,0.00019726,2]
[370286616,1751937047611,-460.0,0.00019726,2]
[370286619,1751937047621,-465.82844052,0.00019726,2]
[370286620,1751937047630,-460.0,0.00019726,2]
[370286623,1751937047640,-460.0,0.00019726,2]
[370286624,1751937047649,-561.06,0.00019726,2]
[370286625,1751937047659,-460.0,0.00019726,2]
[370286626,1751937047669,-3787.17,0.00019726,2]
[370286627,1751937047679,-460.0,0.00019726,2]
[370286628,1751937047688,-460.0,0.00019726,2]
[370286629,1751937047698,-3856.42,0.00019726,2]
[370286630,1751937047707,-460.0,0.00019726,2]
[370286631,1751937047717,-460.0,0.00019726,2]
[370286632,1751937047726,-3554.15355429,0.000199,2]
[370286633,1751937047736,-925.35185906,0.00019939,2]
[370286634,1751937047745,-500.0,0.00019993,2]
[370286635,1751937047754,-500.0,0.0002,2]
[370286636,1751937047764,-151.0,0.0002,2]
[370286637,1751937047773,-151.0,0.0002,2]
[370286638,1751937047783,-151.0,0.0002,2]
[370286651,1751937047894,-151.0,0.0002,2]
[370286653,1751937047903,-151.0,0.0002,2]
[370286655,1751937047912,-460.0,0.0002,2]
[370286657,1751937047922,-151.0,0.0002,2]
[370286659,1751937047932,-169.19433064,0.0002,2]
[370286661,1751937047941,-460.0,0.0002,2]
[370286663,1751937047950,-460.0,0.0002,2]
[370286665,1751937047959,-151.0,0.0002,2]
[370286667,1751937047968,-460.0,0.0002,2]
[370286669,1751937047978,-460.0,0.0002,2]
[370286671,1751937047987,-460.0,0.0002,2]
[370286673,1751937047997,-460.0,0.0002,2]
[370286675,1751937048006,-460.0,0.0002,2]
[370286677,1751937048015,-331.96823879,0.0002,2]
[370286679,1751937048024,-593.79,0.0002,2]
[370286681,1751937048034,-460.0,0.0002,2]
[370286683,1751937048044,-460.0,0.0002,2]
[370286685,1751937048053,-460.0,0.0002,2]
[370286687,1751937048063,-460.0,0.0002,2]
[370286689,1751937048072,-725.15,0.0002,2]
[370286691,1751937048082,-460.0,0.0002,2]
[370286693,1751937048092,-460.0,0.0002,2]
[370286695,1751937048101,-460.0,0.0002,2]
[370286697,1751937048110,-460.0,0.0002,2]
[370286699,1751937048119,-460.0,0.0002,2]
[370286701,1751937048129,-460.0,0.0002,2]
[370286703,1751937048138,-460.0,0.0002,2]
[370286705,1751937048148,-460.0,0.0002,2]
[370286707,1751937048156,-460.0,0.0002,2]
[370286709,1751937048166,-460.0,0.0002,2]
[370286711,1751937048176,-460.0,0.0002,2]
[370286713,1751937048185,-512.84,0.0002,2]
[370286715,1751937048194,-151.0,0.0002,2]
[370286717,1751937048203,-460.0,0.0002,2]
[370286719,1751937048212,-300.446192,0.0002,2]
[370286721,1751937048222,-460.0,0.0002,2]
[370286723,1751937048231,-460.0,0.0002,2]
[370286725,1751937048241,-460.0,0.0002,2]
[370286727,1751937048251,-460.0,0.0002,2]
[370286729,1751937048260,-460.0,0.0002,2]
[370286731,1751937048270,-460.0,0.0002,2]
[370286733,1751937048279,-460.0,0.0002,2]
[370286735,1751937048288,-460.0,0.0002,2]
[370286737,1751937048298,-425.55643975,0.0002,2]
[370286739,1751937048307,-460.0,0.0002,2]
[370286741,1751937048316,-4588.62,0.0002,2]
[370286743,1751937048326,-514.17330706,0.0002,2]
[370286745,1751937048335,-594.4,0.0002,2]
[370286747,1751937048344,-460.0,0.0002,2]
[370286749,1751937048354,-717.96,0.0002,2]
[370286751,1751937048364,-460.0,0.0002,2]
[370286753,1751937048374,-1053.76,0.0002,2]
[370286755,1751937048384,-460.0,0.0002,2]
[370286757,1751937048393,-460.0,0.0002,2]
[370286759,1751937048403,-460.0,0.0002,2]
[370286761,1751937048413,-460.0,0.0002,2]
[370286763,1751937048426,-460.0,0.0002,2]
[370286765,1751937048435,-460.0,0.0002,2]
[370286767,1751937048445,-460.0,0.0002,2]
[370286768,1751937048454,-460.0,0.0002,2]
[370286771,1751937048465,-2549.65,0.0002,2]
[370286772,1751937048474,-460.0,0.0002,2]
[370286774,1751937048483,-5668.98,0.0002,2]
[370286777,1751937048495,-460.0,0.0002,2]
[370286779,1751937048505,-460.0,0.0002,2]
[370286781,1751937048515,-1332.79,0.0002,2]
[370286782,1751937048524,-460.0,0.0002,2]
[370286784,1751937048534,-460.0,0.0002,2]
[370286787,1751937048544,-607.07,0.0002,2]
[370286788,1751937048553,-460.0,0.0002,2]
[370286790,1751937048563,-460.0,0.0002,2]
[370286793,1751937048573,-520.87,0.0002,2]
[370286795,1751937048583,-460.0,0.0002,2]
[370286797,1751937048592,-244.05,0.0002,2]
[370286798,1751937048602,-460.0,0.0002,2]
[370286801,1751937048612,-460.0,0.0002,2]
[370286803,1751937048622,-541.26,0.0002,2]
[370286805,1751937048631,-460.0,0.0002,2]
[370286806,1751937048640,-460.0,0.0002,2]
[370286809,1751937048650,-610.79,0.0002,2]
[370286810,1751937048660,-1850.41,0.0002,2]
[370286813,1751937048670,-1644.49,0.0002,2]
[370286814,1751937048679,-460.0,0.0002,2]
[370286817,1751937048690,-460.0,0.0002,2]
[370286819,1751937048699,-1272.17,0.0002,2]
[370286820,1751937048709,-930.26,0.0002,2]
[370286822,1751937048719,-3081.45,0.0002,2]
[370286825,1751937048729,-460.0,0.0002,2]
[370286826,1751937048739,-476.59,0.0002,2]
[370286829,1751937048749,-460.0,0.0002,2]
[370286831,1751937048759,-619.01,0.0002,2]
[370286833,1751937048769,-3003.55,0.0002,2]
[370286835,1751937048778,-460.0,0.0002,2]
[370286837,1751937048788,-603.53,0.0002,2]
[370286839,1751937048797,-1916.12,0.0002,2]
[370286841,1751937048806,-460.0,0.0002,2]
[370286843,1751937048816,-460.0,0.0002,2]
[370286845,1751937048826,-460.0,0.0002,2]
[370286847,1751937048835,-1735.96,0.0002,2]
[370286849,1751937048844,-585.99,0.0002,2]
[370286851,1751937048854,-460.0,0.0002,2]
[370286853,1751937048863,-460.0,0.0002,2]
[370286855,1751937048872,-460.0,0.0002,2]
[370286857,1751937048882,-460.0,0.0002,2]
[370286859,1751937048891,-460.0,0.0002,2]
[370286861,1751937048900,-460.0,0.0002,2]
[370286863,1751937048910,-1756.11,0.0002,2]
[370286865,1751937048919,-770.94,0.0002,2]
[370286867,1751937048928,-505.72,0.0002,2]
[370286869,1751937048938,-460.0,0.0002,2]
[370286871,1751937048947,-847.18,0.0002,2]
[370286873,1751937048958,-460.0,0.0002,2]
[370286875,1751937048967,-460.0,0.0002,2]
[370286877,1751937048978,-460.0,0.0002,2]
[370286879,1751937048987,-3003.21,0.0002,2]
[370286881,1751937048996,-703.2,0.0002,2]
[370286883,1751937049006,-460.0,0.0002,2]
[370286885,1751937049015,-460.0,0.0002,2]
[370286887,1751937049024,-460.0,0.0002,2]
[370286889,1751937049034,-460.0,0.0002,2]
[370286891,1751937049043,-2471.39,0.0002,2]
[370286893,1751937049052,-623.22,0.0002,2]
[370286895,1751937049062,-460.0,0.0002,2]
[370286897,1751937049071,-460.0,0.0002,2]
[370286899,1751937049080,-460.0,0.0002,2]
[370286900,1751937049090,-460.0,0.0002,2]
[370286902,1751937049100,-507.55,0.0002,2]
[370286904,1751937049110,-641.51,0.0002,2]
[370286907,1751937049120,-465.67539578,0.0002,2]
[370286909,1751937049129,-460.0,0.0002,2]
[370286911,1751937049139,-460.0,0.0002,2]
[370286913,1751937049150,-460.0,0.0002,2]
[370286915,1751937049159,-460.0,0.0002,2]
[370286917,1751937049169,-1844.93,0.0002,2]
[370286919,1751937049178,-596.53,0.0002,2]
[370286921,1751937049187,-1237.37,0.0002,2]
[370286923,1751937049196,-460.0,0.0002,2]
[370286925,1751937049206,-460.0,0.0002,2]
[370286927,1751937049215,-460.0,0.0002,2]
[370286929,1751937049225,-765.87,0.0002,2]
[370286931,1751937049235,-460.0,0.0002,2]
[370286933,1751937049244,-460.0,0.0002,2]
[370286935,1751937049255,-537.00435955,0.0002,2]
[370286937,1751937049265,-561.06,0.0002,2]
[370286939,1751937049274,-205.94874716,0.0002,2]
[370286941,1751937049284,-3787.17,0.0002,2]
[370286943,1751937049293,-460.0,0.0002,2]
[370286945,1751937049302,-3856.42,0.0002,2]
[370286947,1751937049312,-460.0,0.0002,2]
[370286948,1751937049321,-500.0,0.00020021,2]
[370286951,1751937049330,-1000.0,0.00020021,2]
[370286953,1751937049341,-1000.0,0.00020021,2]
[370286955,1751937049350,-1000.0,0.00020021,2]
[370286957,1751937049360,-1471.20296462,0.00020037,2]
[370286959,1751937049370,-3554.15355404,0.00020107,2]
[370286961,1751937049379,-626.9725718,0.00020168,2]
[370286963,1751937049388,-967.0,0.0002019,2]
[370286965,1751937049398,-2153.0,0.0002019,2]
[370286967,1751937049406,-646.0,0.0002019,2]
[370286969,1751937049420,-19243.83203834,0.00020263,2]
[370286971,1751937049429,-151.0,0.00020263,2]
[370286973,1751937049438,-151.0,0.00020263,2]
[370286975,1751937049447,-151.0,0.00020263,2]
[370286977,1751937049456,-151.0,0.00020263,2]
[370286979,1751937049466,-167.0,0.00020268,4]
[370286980,1751937049475,-1500.0,0.00020268,2]
[370286983,1751937049485,-300.0,0.00020273,2]
[370286984,1751937049495,-300.0,0.00020273,2]
[370286986,1751937049505,-151.0,0.00020273,2]
[370286988,1751937049514,-151.0,0.00020273,2]
[370286990,1751937049523,-460.0,0.00020273,2]
[370286992,1751937049532,-151.0,0.00020273,2]
[370287004,1751937049628,-460.0,0.00020273,2]
[370287007,1751937049648,-170.042036,0.00020273,2]
[370287009,1751937049657,-460.0,0.00020273,2]
[370287011,1751937049667,-593.79,0.00020273,2]
[370287013,1751937049677,-460.0,0.00020273,2]
[370287015,1751937049686,-725.15,0.00020273,2]
[370287017,1751937049695,-460.0,0.00020273,2]
[370287019,1751937049705,-460.0,0.00020273,2]
[370287021,1751937049715,-460.0,0.00020273,2]
[370287023,1751937049724,-460.0,0.00020273,2]
[370287025,1751937049733,-160.0,0.00020273,2]
[370287027,1751937049742,-254.26203425,0.00020273,2]
[370287029,1751937049752,-460.0,0.00020273,2]
[370287031,1751937049761,-460.0,0.00020273,2]
[370287033,1751937049772,-512.84,0.00020273,2]
[370287035,1751937049781,-151.0,0.00020273,2]
[370287037,1751937049791,-209.62016079,0.00020273,2]
[370287039,1751937049800,-460.0,0.00020273,2]
[370287041,1751937049810,-460.0,0.00020273,2]
[370287043,1751937049819,-460.0,0.00020273,2]
[370287045,1751937049828,-460.0,0.00020273,2]
[370287047,1751937049837,-460.0,0.00020273,2]
[370287049,1751937049846,-460.0,0.00020273,2]
[370287051,1751937049856,-460.0,0.00020273,2]
[370287053,1751937049865,-460.0,0.00020273,2]
[370287055,1751937049874,-4588.62,0.00020273,2]
[370287057,1751937049883,-594.4,0.00020273,2]
[370287059,1751937049893,-460.0,0.00020273,2]
[370287061,1751937049902,-717.96,0.00020273,2]
[370287063,1751937049911,-460.0,0.00020273,2]
[370287065,1751937049921,-1053.76,0.00020273,2]
[370287067,1751937049930,-460.0,0.00020273,2]
[370287069,1751937049939,-460.0,0.00020273,2]
[370287071,1751937049948,-460.0,0.00020273,2]
[370287073,1751937049958,-212.31030742,0.00020273,2]
[370287075,1751937049967,-460.0,0.00020273,2]
[370287077,1751937049976,-460.0,0.00020273,2]
[370287079,1751937049985,-460.0,0.00020273,2]
[370287081,1751937049995,-2549.65,0.00020273,2]
[370287083,1751937050005,-460.0,0.00020273,2]
[370287085,1751937050015,-5668.98,0.00020273,2]
[370287087,1751937050026,-460.0,0.00020273,2]
[370287089,1751937050035,-590.81,0.00020273,2]
[370287091,1751937050047,-1332.79,0.00020273,2]
[370287093,1751937050056,-460.0,0.00020273,2]
[370287095,1751937050065,-460.0,0.00020273,2]
[370287097,1751937050074,-607.07,0.00020273,2]
[370287099,1751937050084,-460.0,0.00020273,2]
[370287101,1751937050093,-460.0,0.00020273,2]
[370287103,1751937050102,-520.87,0.00020273,2]
[370287105,1751937050113,-460.0,0.00020273,2]
[370287107,1751937050122,-460.0,0.00020273,2]
[370287109,1751937050132,-460.0,0.00020273,2]
[370287111,1751937050141,-541.26,0.00020273,2]
[370287113,1751937050151,-460.0,0.00020273,2]
[370287115,1751937050160,-610.79,0.00020273,2]
[370287117,1751937050170,-1850.41,0.00020273,2]
[370287119,1751937050179,-1644.49,0.00020273,2]
[370287121,1751937050189,-1272.17,0.00020273,2]
[370287123,1751937050199,-3081.45,0.00020273,2]